bitfinex/quotes_ETHUSD_20250608
["timestamp","ask_amount","ask_price","bid_price","bid_amount"]
[1749395860050,1.686,2518.1,2518.0,3.97140587]
[1749395861950,1.686,2518.1,2517.9,19.97148898]
[1749395862261,1.686,2518.1,2518.0,3.97140587]
[1749395863595,1.686,2518.1,2518.0,19.97140587]
[1749395863790,1.686,2518.1,2518.0,20.73390587]
[1749395865191,1.686,2518.1,2518.0,16.0]
[1749395869480,1.686,2518.1,2517.8,3.97171406]
[1749395869683,1.686,2518.1,2517.7,19.97176257]
[1749395870068,1.686,2518.1,2517.6,3.97195389]
[1749395870069,5.65724982,2518.1,2517.6,3.97195389]
[1749395870274,6.497,2518.0,2517.7,16.0]
[1749395870483,10.46841862,2518.0,2517.3,3.97249922]
[1749395870699,0.8307,2517.8,2517.2,5.31266862]
[1749395870913,6.5,2517.7,2517.5,16.0]
[1749395871707,6.5,2517.7,2517.3,3.97244007]
[1749395872076,6.5,2517.7,2517.4,3.97227909]
[1749395874409,6.5,2517.7,2517.3,3.97244256]
[1749395874768,6.5,2517.7,2517.4,3.97235023]
[1749395877578,6.5,2517.7,2517.4,19.97228263]
[1749395878812,6.5,2517.7,2517.5,3.97219358]
[1749395879112,6.5,2517.7,2517.4,19.97226774]
[1749395879494,6.5,2517.7,2517.3,16.0]
[1749395879814,6.5,2517.7,2517.4,3.9723404]
[1749395880382,10.47199078,2517.7,2517.2,3.97262586]
[1749395880698,10.47199078,2517.7,2517.3,16.0]
[1749395881480,6.5,2517.7,2517.3,3.97249482]
[1749395882183,8.02741137,2517.7,2517.3,3.97249482]
[1749395882410,11.99930308,2517.7,2517.3,16.0]
[1749395882686,3.97210029,2517.6,2517.1,4.37608548]
[1749395882893,0.8045,2517.4,2517.1,4.37608548]
[1749395883610,0.8045,2517.4,2517.2,3.97265419]
[1749395883827,8.17,2517.5,2517.3,3.97251022]
[1749395884036,8.17,2517.5,2517.1,5.94100649]
[1749395884037,8.17,2517.5,2517.4,3.97235242]
[1749395884226,8.17,2517.5,2517.3,3.97243569]
[1749395884902,1.683,2517.5,2517.4,3.97235242]
[1749395885514,1.683,2517.5,2517.3,9.510114]
[1749395885916,1.683,2517.5,2516.0,4.56914851]
[1749395885917,0.8045,2517.1,2516.0,0.66666667]
[1749395886118,0.8045,2516.6,2516.0,0.66666667]
[1749395886431,0.47780494,2516.5,2516.3,3.97408894]
[1749395886729,0.8045,2516.7,2516.3,16.0]
[1749395886928,6.666,2516.6,2516.4,3.9738574]
[1749395887119,6.666,2516.6,2516.4,9.51152819]
[1749395887300,6.666,2516.6,2516.4,3.9738574]
[1749395888395,6.666,2516.6,2516.3,19.97402978]
[1749395889315,6.666,2516.6,2516.2,19.97418195]
[1749395889722,6.666,2516.6,2516.3,3.97405022]
[1749395890334,3.97255338,2517.3,2516.3,3.97405022]
[1749395890335,0.7801,2517.2,2516.5,16.0]
[1749395890537,0.7801,2517.4,2516.8,16.8117]
[1749395890713,0.7801,2517.4,2517.0,3.97297683]
[1749395891231,0.7801,2517.6,2517.1,3.97274367]
[1749395891432,12.07524354,2517.6,2517.0,16.0]
[1749395891619,12.07524354,2517.6,2517.1,3.97275232]
[1749395892223,3.97222992,2517.5,2517.0,3.97291422]
[1749395893641,12.07531024,2517.6,2517.0,3.97291422]
[1749395895032,3.97219948,2517.5,2516.9,16.0]
[1749395895375,3.97219948,2517.5,2517.0,3.97297194]
[1749395895524,5.75583063,2517.5,2517.0,3.97297194]
[1749395895725,1.78363115,2517.5,2517.0,3.97297194]
[1749395895985,5.75591787,2517.5,2517.0,3.97297194]
[1749395896142,5.75591787,2517.5,2516.9,19.97305992]
[1749395896319,5.75591787,2517.5,2517.0,3.97298175]
[1749395896554,5.75547658,2517.4,2516.9,19.97309102]
[1749395896826,1.78312297,2517.4,2517.0,3.97294988]
[1749395897567,1.43419902,2517.6,2517.2,3.97259497]
[1749395897771,11.01426051,2519.8,2516.9,16.0]
[1749395897772,6.656,2517.8,2517.3,3.9723915]
[1749395898053,3.97174139,2517.8,2517.3,3.9723915]
[1749395899090,3.97174139,2517.8,2517.2,19.97259033]
[1749395899225,5.51292612,2517.8,2517.3,3.97250752]
[1749395900157,1.54118473,2517.8,2517.4,3.97234504]
[1749395900349,4.78412958,2517.9,2517.5,3.97204497]
[1749395900350,0.8125,2517.9,2517.5,3.97204497]
[1749395900547,0.8125,2517.9,2517.4,19.97224334]
[1749395900870,0.8125,2517.9,2517.5,3.97216188]
[1749395901643,0.8125,2517.9,2517.6,3.97200091]
[1749395902049,11.41222466,2518.1,2517.6,3.97200091]
[1749395902392,1.24083247,2518.0,2517.6,3.97200091]
[1749395902891,7.4379,2518.1,2517.8,3.9716264]
[1749395903056,0.7929,2518.1,2517.9,3.97155152]
[1749395903248,7.4379,2518.1,2517.9,3.97155152]
[1749395904381,7.4379,2518.1,2517.8,19.97164709]
[1749395906880,3.97095063,2518.3,2517.8,19.97164709]
[1749395907044,10.60609233,2518.2,2517.8,19.97164709]
[1749395907250,10.60609233,2518.2,2517.7,19.97180484]
[1749395908467,6.631,2518.1,2517.8,3.97164884]
[1749395908871,6.631,2518.1,2517.7,19.9717958]
[1749395909177,6.631,2518.1,2517.7,21.53559863]
[1749395909383,6.631,2518.1,2517.8,3.97169766]
[1749395909848,6.631,2518.1,2517.7,25.5073911]
[1749395911405,12.39306993,2518.1,2517.7,16.0]
[1749395911722,0.8236,2518.0,2517.7,16.0]
[1749395911892,0.8236,2518.0,2517.7,3.97187526]
[1749395912631,7.4456,2518.0,2517.7,3.97187526]
[1749395912976,7.4456,2518.0,2517.6,19.97199645]
[1749395914086,0.791,2517.8,2517.2,3.97255279]
[1749395914382,3.97203956,2517.6,2517.1,3.97271469]
[1749395914586,3.97203956,2517.6,2517.2,16.0]
[1749395914994,10.59098216,2517.7,2517.2,16.0]
[1749395915195,1.53538405,2517.6,2517.2,16.0]
[1749395915445,0.791,2517.4,2517.1,3.97279074]
[1749395915731,0.791,2517.4,2517.2,16.0]
[1749395917134,2.5272,2517.9,2517.0,27.27994954]
[1749395917337,6.615,2517.8,2517.3,3.97235577]
[1749395918092,10.58673074,2517.8,2517.3,3.97235577]
[1749395919581,6.615,2517.8,2517.0,16.0]
[1749395919763,6.615,2517.8,2517.1,3.97280791]
[1749395919941,4.92467192,2517.7,2517.1,3.97280791]
[1749395920145,3.9720854,2517.6,2517.1,3.97280791]
[1749395922100,4.74248192,2517.5,2517.1,16.0]
[1749395923994,0.7702,2517.5,2517.1,19.97277631]
[1749395924884,0.7702,2517.5,2517.2,3.97260201]
[1749395925217,1.33968183,2517.5,2517.1,19.97276213]
[1749395925369,1.33968183,2517.5,2517.2,3.97262081]
[1749395925569,1.33968183,2517.5,2517.1,16.0]
[1749395925927,0.7702,2517.5,2517.1,16.0]
[1749395926794,0.7702,2517.5,2517.1,19.97280777]
[1749395927117,4.74240853,2517.5,2517.1,16.0]
[1749395927920,0.7702,2517.5,2517.1,19.97281268]
[1749395928069,4.74244671,2517.5,2517.1,16.0]
[1749395928275,0.87145638,2517.4,2517.1,16.0]
[1749395928475,4.7424374,2517.5,2517.1,16.0]
[1749395929475,0.7702,2517.5,2517.1,19.97282033]
[1749395930309,4.74245206,2517.5,2517.1,16.0]
[1749395931406,0.7702,2517.5,2517.1,19.97280559]
[1749395931606,0.7702,2517.5,2517.1,16.0]
[1749395931841,1.74629952,2517.7,2517.3,3.97247579]
[1749395931971,7.15781347,2517.6,2517.3,3.97247579]
[1749395932465,7.15781347,2517.6,2517.2,3.97258446]
[1749395932666,0.57181347,2517.6,2517.3,3.97250317]
[1749395933186,0.57181347,2517.6,2517.2,3.9726225]
[1749395934818,4.54392231,2517.6,2517.1,19.97278098]
[1749395935315,4.54392231,2517.6,2517.1,20.36674576]
[1749395936422,4.54393502,2517.6,2517.1,20.36674576]
[1749395937215,4.54393502,2517.6,2517.2,5.53801656]
[1749395939731,11.11593502,2517.6,2517.2,5.53801656]
[1749395940637,3.97222614,2517.5,2517.2,5.53801656]
[1749395940938,1.28622345,2517.5,2517.1,19.97275372]
[1749395941109,1.28622345,2517.5,2517.2,5.53801656]
[1749395941310,0.57181347,2517.6,2517.3,3.97250892]
[1749395941629,7.14081347,2517.6,2517.2,9.51059326]
[1749395941844,11.11289974,2517.6,2517.2,5.53801656]
[1749395942515,3.97226443,2517.5,2517.1,16.0]
[1749395942720,0.8161,2517.2,2516.6,6.81621656]
[1749395942932,4.78882984,2517.2,2516.8,5.53801656]
[1749395943141,0.8161,2517.2,2516.9,16.0]
[1749395944515,3.97283328,2517.1,2516.7,16.0]
[1749395945525,4.78883577,2517.2,2516.7,19.97343154]
[1749395945747,0.87614249,2517.1,2516.7,19.97343154]
[1749395946351,0.87614249,2517.1,2516.7,19.97337877]
[1749395947652,0.87614249,2517.1,2517.0,3.97298371]
[1749395947968,6.561,2517.2,2517.0,9.51100027]
[1749395948132,1.34021347,2517.6,2517.0,5.53801656]
[1749395948331,0.7684,2517.6,2517.3,5.53801656]
[1749395948971,3.97222166,2517.5,2517.0,9.51092714]
[1749395949568,4.74051899,2517.6,2517.1,3.97280556]
[1749395950249,0.7684,2517.6,2517.0,9.5109885]
[1749395950570,1.725,2517.7,2517.5,3.97210353]
[1749395950775,8.282,2517.7,2517.4,9.51033378]
[1749395950983,8.282,2517.7,2517.4,5.53801656]
[1749395951283,9.58421423,2517.7,2517.4,5.53801656]
[1749395951447,13.55610905,2517.7,2517.2,10.30270662]
[1749395951650,13.55610905,2517.7,2517.2,9.51060662]
[1749395953836,3.97212609,2517.6,2517.2,16.0]
[1749395954037,5.72503183,2517.5,2517.2,16.0]
[1749395954290,1.75282446,2517.5,2517.2,16.0]
[1749395954443,8.282,2517.7,2517.3,3.97240451]
[1749395955380,8.282,2517.7,2517.2,16.0]
[1749395955381,3.97189363,2517.7,2517.2,19.97258267]
[1749395955682,6.55,2517.7,2517.3,3.97250583]
[1749395956339,10.5218846,2517.7,2517.2,19.97260304]
[1749395956780,6.55,2517.7,2517.3,9.51051221]
[1749395957340,7.55537296,2517.7,2517.3,9.51051221]
[1749395958487,7.55537296,2517.7,2517.3,9.51044882]
[1749395958861,7.55537296,2517.7,2517.4,3.9723502]
[1749395959060,7.55537296,2517.7,2517.3,9.51044588]
[1749395959258,1.00537296,2517.7,2517.4,3.9722889]
[1749395959554,6.544,2517.7,2517.3,9.51045101]
[1749395961185,6.544,2517.7,2517.3,5.53801656]
[1749395961186,10.51588858,2517.7,2517.3,5.53801656]
[1749395961546,10.51588858,2517.7,2517.3,9.51051385]
[1749395962361,0.7684,2517.8,2517.5,5.53801656]
[1749395962565,6.539,2517.7,2517.5,9.51014319]
[1749395962883,6.539,2517.7,2517.5,5.53801656]
[1749395965252,7.26974,2517.7,2517.5,5.53801656]
[1749395965682,7.26974,2517.7,2517.3,9.51044058]
[1749395967579,11.24163472,2517.7,2517.3,9.51044058]
[1749395968793,7.26974,2517.7,2517.3,9.51044058]
[1749395969290,6.539,2517.7,2517.3,9.51044058]
[1749395970889,0.7684,2517.8,2517.4,3.97226461]
[1749395971092,7.2964,2517.8,2517.4,3.97226461]
[1749395971589,7.2964,2517.8,2517.3,9.51046865]
[1749395971590,11.26819274,2517.8,2517.3,9.5104885]
[1749395971910,7.2964,2517.8,2517.4,3.9723203]
[1749395972717,0.7684,2517.8,2517.6,3.97203686]
[1749395972860,6.525,2517.8,2517.7,5.53801656]
[1749395973059,6.525,2517.8,2517.5,5.53801656]
[1749395973606,10.49672696,2517.8,2517.5,5.53801656]
[1749395973909,12.11604043,2517.8,2517.5,5.53801656]
[1749395974068,3.97191118,2517.7,2517.3,5.53801656]
[1749395974407,4.78400284,2517.7,2517.4,16.0]
[1749395975008,4.78400284,2517.7,2517.3,16.0]
[1749395975209,0.8121,2517.7,2517.3,3.97249569]
[1749395975373,0.8121,2517.7,2517.3,9.51051225]
[1749395976708,6.525,2517.8,2517.5,9.51010765]
[1749395977816,2.5001,2518.0,2517.5,9.51010765]
[1749395977988,1.701,2518.1,2517.7,5.53801656]
[1749395978191,6.519,2518.1,2517.7,5.53801656]
[1749395978393,4.74619731,2518.2,2517.8,3.97165755]
[1749395978394,0.7751,2518.2,2517.8,3.97165755]
[1749395978597,0.7751,2518.2,2517.7,9.5098265]
[1749395978598,6.519,2518.1,2517.7,9.5098265]
[1749395979798,6.519,2518.1,2517.8,3.97171197]
[1749395980300,0.7751,2518.2,2517.9,9.50950449]
[1749395980627,11.26223738,2518.2,2517.9,5.53801656]
[1749395980791,7.2911,2518.2,2517.9,5.53801656]
[1749395981284,8.30424638,2518.2,2517.9,5.53801656]
[1749395983305,7.2911,2518.2,2517.9,5.53801656]
[1749395984926,11.26219991,2518.2,2517.7,9.5098259]
[1749395985334,3.97143847,2518.0,2517.3,5.53801656]
[1749395985541,3.97173201,2517.8,2517.4,16.0]
[1749395985832,3.97173201,2517.8,2517.2,3.97256072]
[1749395985833,3.97190961,2517.7,2517.2,3.97259492]
[1749395986136,3.97179047,2517.8,2517.4,16.0]
[1749395988110,3.97172134,2517.8,2517.4,16.0]
[1749395989645,0.8127,2517.6,2517.3,16.0]
[1749395990229,4.78474645,2517.6,2517.2,16.0]
[1749395990821,0.8127,2517.6,2517.2,19.97263874]
[1749395992142,0.8127,2517.6,2517.3,3.97248045]
[1749395992541,0.8127,2517.6,2517.2,19.9725909]
[1749395993809,0.8127,2517.6,2517.3,3.97246249]
[1749395994134,0.8127,2517.6,2517.2,19.97258477]
[1749395996755,0.8127,2517.6,2517.3,3.97250564]
[1749395997558,0.8127,2517.6,2517.3,9.5105222]
[1749395999722,0.8127,2517.6,2517.3,5.53801656]
[1749396000857,0.8127,2517.6,2517.2,25.51060572]
[1749396001054,0.8127,2517.6,2517.2,21.53801656]
[1749396001264,0.7581,2517.8,2517.7,3.97187909]
[1749396001554,7.2531,2518.1,2517.7,5.53801656]
[1749396001760,7.2531,2518.1,2517.6,3.9719726]
[1749396001761,11.22436285,2518.1,2517.6,3.97194907]
[1749396001968,11.22436285,2518.1,2517.7,16.0]
[1749396004794,11.22436285,2518.1,2517.7,3.9718745]
[1749396005781,7.2531,2518.1,2517.7,3.9718745]
[1749396006650,7.2531,2518.1,2517.9,3.97155421]
[1749396006850,7.2531,2518.1,2517.7,3.97180108]
[1749396007386,7.2531,2518.1,2517.8,3.97171938]
[1749396007745,7.2531,2518.1,2517.7,3.97179296]
[1749396008651,11.22434978,2518.1,2517.7,3.97179296]
[1749396009391,3.97141581,2518.0,2517.6,19.97200707]
[1749396010162,11.22441725,2518.1,2517.6,19.97200707]
[1749396010783,7.2531,2518.1,2517.7,3.97185398]
[1749396014398,11.22436871,2518.1,2517.6,19.97194774]
[1749396015795,7.2531,2518.1,2517.6,19.97194774]
[1749396016007,11.22441842,2518.1,2517.6,19.97194774]
[1749396016713,11.22441842,2518.1,2517.7,3.97186866]
[1749396016862,7.2531,2518.1,2517.7,3.97186866]
[1749396017069,7.2531,2518.1,2517.7,3.97187909]
[1749396017374,10.46116856,2518.2,2517.7,3.97177578]
[1749396017559,10.46116856,2518.2,2517.6,25.51003639]
[1749396017560,0.8257,2518.1,2517.6,16.0]
[1749396017760,3.97149215,2518.0,2517.6,16.0]
[1749396018403,3.97140587,2518.0,2517.6,16.0]
[1749396020019,3.97155568,2518.0,2517.5,16.0]
[1749396020179,10.9413923,2517.9,2517.5,16.0]
[1749396022784,3.97180949,2517.8,2517.4,16.0]
[1749396022983,10.94137458,2517.9,2517.4,19.97233788]
[1749396023913,3.97176837,2517.8,2517.4,16.0]
[1749396024119,10.94137184,2517.9,2517.4,19.97234362]
[1749396024301,1.65968136,2517.8,2517.4,19.97234362]
[1749396025588,3.97195924,2517.7,2517.1,10.71257474]
[1749396025798,6.49,2517.6,2517.5,3.97219463]
[1749396025998,6.49,2517.6,2517.4,19.9722705]
[1749396026326,6.49,2517.8,2517.5,10.31636079]
[1749396026528,6.49,2517.8,2517.5,6.34421656]
[1749396026825,6.49,2517.8,2517.5,5.53801656]
[1749396027001,10.46172171,2517.8,2517.5,5.53801656]
[1749396027197,6.49,2517.8,2517.5,5.53801656]
[1749396027621,6.49,2517.8,2517.5,9.51015818]
[1749396028324,6.19,2517.8,2517.5,9.51015818]
[1749396030637,0.7643,2518.1,2517.7,3.9718699]
[1749396030829,6.49,2517.9,2517.7,3.9718699]
[1749396031025,0.7643,2518.1,2517.7,5.53801656]
[1749396031339,6.49,2518.0,2517.8,3.97168555]
[1749396031641,6.49,2518.0,2517.7,10.31603861]
[1749396034956,6.49,2518.0,2517.8,16.0]
[1749396039555,4.73530609,2518.3,2517.8,3.97164734]
[1749396039755,12.14411782,2518.2,2517.9,16.0]
[1749396039959,12.14411782,2518.2,2517.8,16.0]
[1749396040317,8.173,2518.2,2517.8,16.0]
[1749396040523,12.1441953,2518.2,2517.8,16.0]
[1749396043554,3.97129008,2518.1,2517.8,16.0]
[1749396043774,6.489,2518.0,2517.8,16.0]
[1749396044555,6.489,2518.0,2517.8,19.97169804]
[1749396044961,6.489,2518.0,2517.9,4.7357636]
[1749396045579,4.74580487,2518.5,2518.1,16.0]
[1749396045754,1.684,2518.2,2518.0,16.0]
[1749396045959,6.489,2518.1,2518.0,16.0]
[1749396046155,3.97084572,2518.4,2518.0,16.0]
[1749396046156,3.97078734,2518.4,2518.0,16.0]
[1749396046359,8.173,2518.3,2518.0,16.0]
[1749396046562,12.1439462,2518.3,2518.0,16.0]
[1749396047943,8.173,2518.3,2518.0,16.0]
[1749396048649,3.97085973,2518.4,2518.0,16.0]
[1749396048850,8.173,2518.3,2518.0,16.0]
[1749396049973,3.97085973,2518.4,2518.0,16.0]
[1749396050176,6.488,2518.2,2518.0,16.0]
[1749396054801,6.488,2518.1,2518.0,19.97132655]
[1749396055599,1.7271499,2518.5,2518.1,3.97115599]
[1749396055814,1.684,2518.5,2518.4,21.53801656]
[1749396056010,1.684,2518.5,2518.4,16.0]
[1749396058872,2.4811,2518.5,2518.4,16.0]
[1749396059079,7.81234614,2518.5,2518.4,16.0]
[1749396060577,3.9707951,2518.4,2518.0,16.0]
[1749396060781,6.487,2518.3,2518.0,3.97140411]
[1749396061006,6.487,2518.3,2518.1,16.0]
[1749396062308,6.487,2518.3,2518.0,16.0]
[1749396063117,6.487,2518.3,2518.1,16.0]
[1749396063619,6.487,2518.3,2518.0,16.0]
[1749396066622,3.9711692,2518.2,2517.8,16.78]
[1749396066820,3.97142417,2518.0,2517.6,0.7727]
[1749396067200,6.487,2517.9,2517.3,5.25512307]
[1749396067348,8.171,2517.9,2517.4,5.53801656]
[1749396067553,8.171,2517.9,2517.6,19.97190195]
[1749396067764,2.46735468,2518.3,2517.8,3.97172134]
[1749396067972,12.14209151,2518.2,2517.8,16.0]
[1749396068375,3.97126144,2518.1,2517.8,16.0]
[1749396068537,6.487,2518.0,2517.7,0.7727]
[1749396070063,6.487,2518.0,2517.7,4.74456886]
[1749396070265,5.65519278,2518.2,2517.8,16.0]
[1749396070266,3.97119278,2518.2,2517.8,16.0]
[1749396070408,12.14127105,2518.1,2517.7,0.7727]
[1749396071927,3.97142631,2518.0,2517.6,16.0]
[1749396072343,10.45857955,2517.9,2517.6,16.0]
[1749396074369,6.487,2517.9,2517.6,16.0]
[1749396074963,10.45856747,2517.9,2517.6,16.0]
[1749396075277,3.97174925,2517.8,2517.6,16.0]
[1749396075629,10.45863603,2517.9,2517.6,16.0]
[1749396075932,6.487,2517.9,2517.8,16.0]
[1749396076364,6.487,2517.9,2517.6,16.0]
[1749396077374,10.45858261,2517.9,2517.6,16.0]
[1749396077670,6.487,2517.9,2517.6,16.0]
[1749396078462,10.45856422,2517.9,2517.6,16.0]
[1749396079182,6.487,2517.9,2517.6,16.0]
[1749396079385,10.45859715,2517.9,2517.5,16.0]
[1749396079699,8.17,2517.8,2517.7,16.0]
[1749396079865,6.487,2517.8,2517.7,16.0]
[1749396080389,3.97137201,2518.1,2517.7,16.0]
[1749396080595,1.683,2517.9,2517.7,16.0]
[1749396080782,6.487,2517.8,2517.7,16.0]
[1749396081182,3.97156642,2517.9,2517.5,16.0]
[1749396081382,3.97194798,2517.7,2517.4,16.0]
[1749396081712,3.97194798,2517.7,2517.2,3.97259251]
[1749396081713,6.487,2517.6,2517.2,3.97259251]
[1749396081877,6.487,2517.6,2517.3,16.0]
[1749396082265,10.459064,2517.6,2517.1,21.19154422]
[1749396082468,6.487,2517.6,2517.3,16.0]
[1749396083991,6.487,2517.6,2517.3,19.97250296]
[1749396084389,6.487,2517.6,2517.4,9.51036096]
[1749396084772,6.487,2517.5,2517.4,9.51036096]
[1749396085107,6.487,2517.5,2517.4,5.53801656]
[1749396085295,6.487,2517.5,2517.4,9.51036898]
[1749396086910,6.487,2517.5,2517.4,5.53801656]
[1749396088626,6.487,2517.5,2517.3,19.97244314]
[1749396091641,6.487,2517.5,2517.3,16.0]
[1749396093431,6.487,2517.5,2517.3,19.97250915]
[1749396094834,1.683,2517.6,2517.5,16.0]
[1749396094999,8.169,2517.6,2517.5,16.0]
[1749396095200,6.486,2517.7,2517.5,19.97211945]
[1749396096299,6.486,2517.7,2517.6,19.9720284]
[1749396096737,6.486,2517.8,2517.6,16.0]
[1749396097612,10.45774456,2517.8,2517.6,16.0]
[1749396099044,6.486,2517.8,2517.6,16.0]
[1749396101246,1.683,2517.9,2517.6,16.0]
[1749396101448,1.683,2517.9,2517.6,25.51002887]
[1749396101649,1.683,2517.9,2517.6,21.53801656]
[1749396101823,6.486,2517.8,2517.6,16.0]
[1749396106216,6.485,2518.0,2517.8,16.7787]
[1749396106455,6.485,2518.0,2517.8,0.7787]
[1749396107332,6.435,2518.0,2517.8,0.7787]
[1749396107542,6.435,2518.0,2517.7,16.0]
[1749396108118,6.435,2518.0,2517.5,16.0]
[1749396108321,3.9715636,2517.9,2517.4,16.7715]
[1749396108622,6.485,2517.8,2517.4,16.7715]
[1749396109138,10.45673335,2517.8,2517.4,0.7715]
[1749396109341,10.45673335,2517.8,2517.4,4.74384682]
[1749396109342,6.485,2517.8,2517.4,4.74384682]
[1749396110058,6.485,2517.8,2517.6,16.0]
[1749396110515,6.485,2517.8,2517.5,16.0]
[1749396110955,6.485,2517.8,2517.5,19.97216928]
[1749396111457,6.485,2517.8,2517.5,16.0]
[1749396111751,8.167,2517.8,2517.5,16.0]
[1749396112444,8.167,2517.8,2517.5,19.97219442]
[1749396113860,0.7844,2518.1,2517.7,3.97179495]
[1749396114069,1.682,2517.9,2517.8,16.0]
[1749396114365,8.166,2517.9,2517.8,16.0]
[1749396114719,8.166,2517.9,2517.7,16.0]
[1749396115121,8.166,2517.9,2517.7,19.97181697]
[1749396119178,0.7844,2518.1,2517.8,3.97172134]
[1749396119377,8.166,2518.0,2517.8,3.97172134]
[1749396119676,8.166,2518.0,2517.7,19.97180191]
[1749396119887,8.166,2518.0,2517.7,19.97186591]
[1749396129581,8.166,2518.0,2517.7,16.0]
[1749396130583,0.815,2517.9,2517.4,19.9722248]
[1749396130820,6.483,2517.8,2517.5,3.97217263]
[1749396132908,8.163,2517.8,2517.5,3.97217263]
[1749396135243,8.163,2517.8,2517.4,19.97223701]
[1749396135451,8.163,2517.8,2517.5,3.97218681]
[1749396138361,8.163,2517.8,2517.4,19.97226826]
[1749396139270,8.163,2517.8,2517.5,3.97217421]
[1749396141135,8.163,2517.8,2517.6,3.97202455]
[1749396141340,8.163,2517.8,2517.7,16.0]
[1749396143950,8.163,2517.8,2517.3,16.0]
[1749396143951,0.7676,2517.7,2517.3,16.0]
[1749396144147,0.7676,2517.7,2517.3,3.97237074]
[1749396144352,0.7676,2517.7,2517.3,3.97246031]
[1749396145689,0.7676,2517.7,2517.4,3.97232472]
[1749396147590,0.7676,2517.7,2517.6,16.0]
[1749396148190,3.97209093,2517.6,2517.1,4.36058346]
[1749396148350,7.2583,2517.5,2517.1,16.0]
[1749396148550,11.23055986,2517.5,2517.1,16.0]
[1749396148779,7.2583,2517.5,2517.4,16.0]
[1749396148965,7.2583,2517.5,2517.3,16.0]
[1749396149369,7.2583,2517.5,2517.1,19.9727537]
[1749396149565,8.47960862,2517.5,2517.1,19.9727537]
[1749396149770,7.2583,2517.5,2517.3,16.0]
[1749396150860,7.2583,2517.5,2517.1,16.0]
[1749396151060,11.23050908,2517.5,2517.1,19.97282581]
[1749396151281,7.2583,2517.5,2517.1,19.97282581]
[1749396152511,7.2583,2517.5,2517.3,16.0]
[1749396153393,0.7773,2517.5,2517.3,16.0]
[1749396153587,6.481,2517.4,2517.3,3.97251022]
[1749396153815,6.481,2517.4,2517.3,19.97251022]
[1749396154546,6.481,2517.4,2517.3,16.0]
[1749396155539,6.481,2517.4,2517.3,19.97251022]
[1749396156427,6.481,2517.4,2517.3,16.0]
[1749396156720,1.73874,2517.7,2517.4,16.0]
[1749396156920,8.161,2517.6,2517.4,16.0]
[1749396159133,8.161,2517.6,2517.3,16.0]
[1749396161241,8.161,2517.6,2517.3,20.02774493]
[1749396162739,8.161,2517.6,2517.3,24.00022782]
[1749396163334,0.7559,2517.7,2517.4,3.97229544]
[1749396163647,3.971646,2517.9,2517.5,4.02774493]
[1749396163648,8.158,2517.6,2517.5,4.02774493]
[1749396165718,6.48,2517.6,2517.5,4.02774493]
[1749396169760,6.48,2517.6,2517.5,20.02774493]
[1749396181267,1.678,2517.7,2517.5,20.02774493]
[1749396181578,6.478,2517.6,2517.5,20.02774493]
[1749396183986,6.478,2517.6,2517.5,16.0]
[1749396184694,8.44947654,2517.6,2517.5,16.0]
[1749396185465,12.4215134,2517.6,2517.5,16.0]
[1749396185902,8.44947654,2517.6,2517.5,19.97219463]
[1749396186067,7.2367,2517.6,2517.5,16.0]
[1749396186256,7.2367,2517.6,2517.5,19.97219463]
[1749396186257,8.155,2517.6,2517.5,19.97219463]
[1749396186701,1.678,2517.7,2517.6,19.97191544]
[1749396186900,6.477,2517.9,2517.8,16.0]
[1749396187215,1.678,2518.3,2518.2,3.97109046]
[1749396187415,8.155,2518.3,2518.2,20.02774493]
[1749396187761,8.155,2518.3,2518.2,23.99883539]
[1749396188871,8.155,2518.3,2518.2,19.97109046]
[1749396189072,8.155,2518.3,2518.2,16.0]
[1749396196317,9.04637,2518.3,2518.2,16.0]
[1749396196616,9.81477,2518.3,2518.2,16.0]
[1749396196911,13.78570277,2518.3,2518.2,16.0]
[1749396198084,9.81477,2518.3,2518.2,16.0]
[1749396199223,13.78570277,2518.3,2518.2,16.0]
[1749396199894,9.81477,2518.3,2518.2,16.0]
[1749396200413,13.78570277,2518.3,2518.2,16.0]
[1749396200922,9.81477,2518.3,2518.2,16.0]
[1749396201478,13.78570277,2518.3,2518.2,16.0]
[1749396202516,9.81477,2518.3,2518.2,16.0]
[1749396204820,13.78570277,2518.3,2518.2,16.0]
[1749396206998,9.81477,2518.3,2518.2,16.0]
[1749396208222,13.78570277,2518.3,2518.2,16.0]
[1749396209987,9.81477,2518.3,2518.2,16.0]
[1749396210700,3.33777,2518.3,2518.2,16.0]
[1749396210916,9.81077,2518.3,2518.2,16.0]
[1749396212020,6.473,2518.3,2518.2,16.0]
[1749396218510,10.44393277,2518.3,2518.2,16.0]
[1749396220161,6.473,2518.3,2518.2,16.0]
[1749396221651,10.44393277,2518.3,2518.2,16.0]
[1749396222594,6.473,2518.3,2518.2,16.0]
[1749396222875,8.16378542,2518.3,2518.2,16.0]
[1749396223368,12.13471819,2518.3,2518.2,16.0]
[1749396225472,8.16378542,2518.3,2518.2,16.0]
[1749396228572,9.83778542,2518.3,2518.2,16.0]
[1749396232076,13.80871819,2518.3,2518.2,16.0]
[1749396235663,3.36478542,2518.3,2518.2,16.0]
[1749396235869,8.144,2518.3,2518.2,16.0]
[1749396241713,8.144,2518.3,2518.0,16.0]
[1749396241925,8.143,2518.2,2518.1,19.97123974]
[1749396242922,6.469,2518.2,2518.1,19.97123974]
[1749396243104,0.6667,2518.7,2518.3,3.97082378]
[1749396243303,1.674,2518.6,2518.5,19.97061743]
[1749396243548,8.143,2518.6,2518.5,16.0]
[1749396244655,8.143,2518.6,2518.4,16.8034]
[1749396245011,8.143,2518.6,2518.4,0.8034]